fUST/lending_fUST_20251020
["ID","MTS","AMOUNT","RATE_DAILY","PERIOD"]
[391881615,1760950239467,-500.0,0.00024791,2]
[391881616,1760950239478,-175.432542,0.00024791,2]
[391881617,1760950239490,-500.0,0.00024791,2]
[391881618,1760950239500,-500.0,0.00024791,2]
[391881619,1760950239510,-500.0,0.00024791,2]
[391881620,1760950239520,-500.0,0.00024791,2]
[391881621,1760950239530,-500.0,0.00024791,2]
[391881622,1760950239540,-500.0,0.00024791,2]
[391881623,1760950239549,-500.0,0.00024791,2]
[391881624,1760950239559,-500.0,0.00024791,2]
[391881625,1760950239569,-500.0,0.00024791,2]
[391881626,1760950239579,-500.0,0.00024791,2]
[391881627,1760950239588,-500.0,0.00024791,2]
[391881628,1760950239598,-500.0,0.00024791,2]
[391881629,1760950239607,-500.0,0.00024791,2]
[391881630,1760950239617,-500.0,0.00024791,2]
[391881631,1760950239626,-500.0,0.00024791,2]
[391881632,1760950239636,-500.0,0.00024791,2]
[391881633,1760950239645,-500.0,0.00024791,2]
[391881634,1760950239655,-500.0,0.00024791,2]
[391881635,1760950239664,-500.0,0.00024791,2]
[391881636,1760950239673,-500.0,0.00024791,2]
[391881637,1760950239683,-500.0,0.00024791,2]
[391881638,1760950239692,-500.0,0.00024791,2]
[391881639,1760950239702,-500.0,0.00024791,2]
[391881640,1760950239713,-500.0,0.00024791,2]
[391881641,1760950239723,-500.0,0.00024791,2]
[391881642,1760950239732,-500.0,0.00024791,2]
[391881643,1760950239742,-500.0,0.00024791,2]
[391881644,1760950239751,-500.0,0.00024791,2]
[391881645,1760950239761,-500.0,0.00024791,2]
[391881646,1760950239770,-500.0,0.00024791,2]
[391881647,1760950239779,-500.0,0.00024791,2]
[391881648,1760950239789,-200.0,0.00024791,2]
[391881649,1760950239798,-500.0,0.00024791,2]
[391881650,1760950239808,-500.0,0.00024791,2]
[391881651,1760950239818,-500.0,0.00024791,2]
[391881652,1760950239827,-500.0,0.00024791,2]
[391881653,1760950239837,-370000.0,0.00024792,2]
[391881654,1760950239847,-500.0,0.00024792,5]
[391881655,1760950239856,-23592.77,0.000248,7]
[391881656,1760950239866,-402.9601108,0.000248,7]
[391881657,1760950239875,-344.19119245,0.000248,2]
[391881658,1760950239885,-307.53703169,0.000248,2]
[391881659,1760950239894,-351.47089336,0.000248,2]
[391881660,1760950239903,-340.65054617,0.000248,2]
[391881661,1760950239912,-548.6240976,0.000248,2]
[391881662,1760950239922,-613.1709831,0.000248,2]
[391881663,1760950239931,-224.30653998,0.000248,2]
[391881664,1760950239944,-501.81871008,0.00024804,2]
[391881665,1760950239953,-588.23134462,0.00024892,2]
[391881667,1760950239963,-638.97557382,0.000249,2]
[391881669,1760950239973,-500.0,0.00024973,2]
[391881670,1760950239984,-523.57319482,0.00024973,2]
[391881671,1760950239994,-502.42718868,0.00024973,2]
[391881672,1760950240003,-73336.69762106,0.0002499,2]
[391881673,1760950240013,-500.0,0.00025065,2]
[391881674,1760950240023,-500.0,0.00025066,5]
[391881675,1760950240032,-172.5,0.000251,2]
[391881676,1760950240042,-150.0,0.00025191,2]
[391881677,1760950240051,-199.0,0.00025205,7]
[391881678,1760950240061,-900.17946326,0.00025321,2]
[391881679,1760950240071,-1000.0,0.00025321,2]
[391881680,1760950240080,-1000.0,0.00025321,2]
[391881681,1760950240089,-1000.0,0.00025321,2]
[391881682,1760950240098,-1000.0,0.00025321,2]
[391881683,1760950240107,-1000.0,0.00025321,2]
[391881684,1760950240116,-1000.0,0.00025321,2]
[391881685,1760950240126,-1000.0,0.00025321,2]
[391881686,1760950240135,-1002.79860014,0.00025321,2]
[391881688,1760950240145,-1000.0,0.00025321,2]
[391881690,1760950240154,-548.81049135,0.00025339,2]
[391881691,1760950240164,-500.0,0.0002534,5]
[391881692,1760950240173,-903.27367814,0.00025373,2]
[391881693,1760950240184,-199.0,0.00025479,8]
[391881694,1760950240193,-1000.0,0.00025521,2]
[391881696,1760950240202,-500.0,0.00025614,5]
[391881698,1760950240213,-195.0,0.000257,2]
[391881700,1760950240223,-161.57387509,0.00025736,5]
[391881701,1760950240232,-199.0,0.00025753,9]
[391881702,1760950240242,-517.3301255,0.00025809,2]
[391881704,1760950240251,-213.3186526,0.00025839,3]
[391881706,1760950240261,-151.0,0.00025839,3]
[391881707,1760950240271,-151.0,0.00025839,3]
[391881708,1760950240280,-151.0,0.00025839,3]
[391881709,1760950240289,-151.0,0.00025839,3]
[391881710,1760950240299,-151.56637366,0.00025839,3]
[391881711,1760950240309,-198.69607341,0.00025839,3]
[391881712,1760950240318,-522.0,0.00025839,3]
[391881713,1760950240327,-151.0,0.00025839,3]
[391881714,1760950240336,-500.0,0.00025839,3]
[391881715,1760950240346,-151.0,0.00025839,3]
[391881717,1760950240356,-685.21247534,0.00025868,2]
[391881719,1760950240365,-1090.39393435,0.00025868,2]
[391881721,1760950240374,-1500.0,0.00025868,2]
[391881722,1760950240383,-1500.0,0.00025868,2]
[391881723,1760950240392,-616.8914716,0.00025868,2]
[391881724,1760950240401,-1500.0,0.00025868,2]
[391881725,1760950240411,-1500.0,0.00025868,2]
[391881726,1760950240420,-1500.0,0.00025868,2]
[391881727,1760950240429,-500.0,0.00025888,2]
[391881728,1760950240439,-500.0,0.00025888,2]
[391881729,1760950240448,-500.0,0.00025888,2]
[391881730,1760950240459,-500.0,0.00025888,2]
[391881731,1760950240468,-500.0,0.00025888,2]
[391881732,1760950240477,-500.0,0.00025888,2]
[391881733,1760950240625,-500.0,0.00025888,2]
[391881734,1760950240634,-500.0,0.00025888,2]
[391881735,1760950240644,-500.0,0.00025888,2]
[391881736,1760950240653,-506.86946724,0.00025888,2]
[391881737,1760950240662,-490.62025387,0.00025888,2]
[391881738,1760950240672,-505.07238587,0.00025888,2]
[391881739,1760950240681,-500.0,0.00025888,2]
[391881740,1760950240690,-500.0,0.00025888,2]
[391881741,1760950240699,-158.45552761,0.00025888,2]
[391881742,1760950240710,-158.10768188,0.00025888,2]
[391881743,1760950240720,-500.0,0.00025888,2]
[391881744,1760950240729,-500.0,0.00025888,2]
[391881745,1760950240738,-158.45551666,0.00025888,2]
[391881746,1760950240747,-500.0,0.00025888,2]
[391881747,1760950240756,-500.0,0.00025888,2]
[391881748,1760950240765,-500.0,0.00025888,2]
[391881749,1760950240775,-505.30308015,0.00025888,2]
[391881750,1760950240784,-500.0,0.00025888,2]
[391881751,1760950240793,-320.58791878,0.00025888,2]
[391881752,1760950240802,-500.0,0.00025888,2]
[391881753,1760950240811,-500.0,0.00025888,2]
[391881754,1760950240821,-158.05538179,0.00025888,2]
[391881755,1760950240830,-500.0,0.00025888,2]
[391881756,1760950240839,-501.80162162,0.00025888,2]
[391881757,1760950240848,-500.0,0.00025888,2]
[391881758,1760950240858,-500.0,0.00025888,2]
[391881759,1760950240867,-160.05607709,0.00025888,2]
[391881760,1760950240877,-500.0,0.00025888,2]
[391881761,1760950240887,-500.0,0.00025888,2]
[391881762,1760950240897,-500.0,0.00025888,2]
[391881763,1760950240906,-500.0,0.00025888,5]
[391881764,1760950240915,-151.0,0.00025894,3]
[391881765,1760950240924,-522.0,0.00025894,3]
[391881766,1760950240938,-210.0,0.00025894,3]
[391881767,1760950240947,-510.71064386,0.00025894,3]
[391881768,1760950240957,-151.0,0.00025894,3]
[391881769,1760950240966,-1605.81987225,0.0002594,2]
[391881770,1760950240975,-198.0,0.00025949,3]
[391881771,1760950240985,-522.0,0.00025949,3]
[391881772,1760950240994,-198.0,0.00025949,3]
[391881773,1760950241003,-522.0,0.00026003,3]
[391881774,1760950241012,-6000.0,0.00026026,3]
[391881775,1760950241020,-199.0,0.00026027,10]
[391881776,1760950241029,-522.0,0.00026058,3]
[391881777,1760950241038,-1000.013112,0.00026068,2]
[391881778,1760950241046,-522.0,0.00026113,3]
[391881779,1760950241055,-500.0,0.00026133,2]
[391881780,1760950241064,-502.79717437,0.00026133,2]
[391881781,1760950241074,-559.63839702,0.00026133,2]
[391881783,1760950241084,-500.0,0.00026133,2]
[391881784,1760950241092,-4269.16,0.00026152,3]
[391881785,1760950241102,-2134.58,0.00026152,3]
[391881786,1760950241112,-1067.28,0.00026152,3]
[391881787,1760950241121,-533.64,0.00026152,3]
[391881788,1760950241130,-402.9601108,0.00026152,3]
[391881789,1760950241140,-173.07,0.0002616,2]
[391881790,1760950241149,-500.0,0.00026162,5]
[391881791,1760950241158,-160.0,0.00026163,2]
[391881792,1760950241168,-500.0,0.00026165,2]
[391881793,1760950241178,-500.0,0.00026165,2]
[391881794,1760950241187,-410.62875183,0.00026165,2]
[391881795,1760950241196,-522.0,0.00026168,3]
[391881796,1760950241206,-522.0,0.00026223,3]
[391881797,1760950241218,-522.0,0.00026277,3]
[391881798,1760950241227,-217.5,0.000263,2]
[391881799,1760950241237,-522.0,0.00026332,3]
[391881800,1760950241246,-522.0,0.00026387,3]
[391881801,1760950241255,-2000.0,0.00026416,2]
[391881802,1760950241265,-2000.0,0.00026416,2]
[391881803,1760950241275,-1950.84394728,0.00026416,2]
[391881804,1760950241284,-2000.0,0.00026416,2]
[391881805,1760950241293,-1000.0,0.00026435,2]
[391881806,1760950241303,-1000.0,0.00026435,2]
[391881807,1760950241313,-620.1437084,0.00026435,2]
[391881808,1760950241324,-1042.87348369,0.00026435,2]
[391881809,1760950241333,-200.95345942,0.00026435,2]
[391881810,1760950241343,-1000.0,0.00026435,2]
[391881811,1760950241352,-513.90856149,0.00026435,2]
[391881812,1760950241362,-504.3291338,0.00026435,2]
[391881813,1760950241372,-691.76914439,0.00026435,2]
[391881814,1760950241381,-1000.0,0.00026435,2]
[391881815,1760950241391,-1000.0,0.00026435,2]
[391881816,1760950241403,-1000.0,0.00026435,2]
[391881817,1760950241413,-1000.0,0.00026435,2]
[391881818,1760950241423,-1000.0,0.00026435,2]
[391881819,1760950241432,-174.55050883,0.00026435,2]
[391881820,1760950241441,-1000.0,0.00026435,2]
[391881821,1760950241450,-512.92329566,0.00026435,2]
[391881822,1760950241461,-1000.0,0.00026435,2]
[391881823,1760950241470,-515.34274103,0.00026435,2]
[391881824,1760950241479,-515.28598846,0.00026435,2]
[391881825,1760950241488,-529.66142112,0.00026435,2]
[391881826,1760950241497,-1000.0,0.00026435,2]
[391881827,1760950241506,-507.73015531,0.00026435,2]
[391881828,1760950241515,-1000.0,0.00026435,2]
[391881829,1760950241525,-179.84697018,0.00026435,2]
[391881830,1760950241534,-500.0,0.00026436,5]
[391881831,1760950241543,-522.0,0.00026442,3]
[391881832,1760950241553,-522.0,0.00026497,3]
[391881833,1760950241561,-2509.09355039,0.00026509,2]
[391881834,1760950241571,-522.0,0.00026551,3]
[391881835,1760950241580,-522.0,0.00026606,3]
[391881836,1760950241590,-931.1942259,0.00026634,2]
[391881837,1760950241599,-522.0,0.00026661,3]
[391881838,1760950241608,-835.50537354,0.00026681,2]
[391881839,1760950241617,-1002.13746908,0.00026681,2]
[391881840,1760950241626,-500.0,0.0002671,5]
[391881841,1760950241635,-260.0,0.00026711,2]
[391881842,1760950241644,-1000.0,0.00026713,2]
[391881843,1760950241653,-969.37199468,0.00026713,2]
[391881844,1760950241662,-522.0,0.00026716,3]
[391881845,1760950241672,-522.0,0.00026771,3]
[391881846,1760950241680,-261.871902,0.000268,2]
[391881847,1760950241689,-217.975983,0.000268,2]
[391881848,1760950241698,-522.0,0.00026825,3]
[391881849,1760950241708,-1680.0,0.0002684,2]
[391881850,1760950241717,-407.0,0.0002684,2]
[391881851,1760950241727,-282.0,0.0002684,2]
[391881852,1760950241736,-420.0,0.0002684,2]
[391881853,1760950241745,-407.0,0.0002684,2]
[391881854,1760950241754,-420.0,0.0002684,2]
[391881855,1760950241763,-526.88473247,0.00026864,2]
[391881856,1760950241772,-522.0,0.0002688,3]
[391881857,1760950241782,-240.0,0.000269,2]
[391881858,1760950241791,-522.0,0.00026935,3]
[391881859,1760950241800,-1680.0,0.00026962,2]
[391881860,1760950241809,-2500.0,0.00026964,2]
[391881861,1760950241818,-2500.0,0.00026964,2]
[391881862,1760950241828,-2033.36642872,0.00026964,2]
[391881863,1760950241837,-150.0,0.00026973,2]
[391881864,1760950241847,-150.0,0.00026973,2]
[391881865,1760950241856,-161.82696326,0.00026973,2]
[391881866,1760950241865,-793.16431153,0.00026983,2]
[391881867,1760950241874,-1500.0,0.00026983,2]
[391881868,1760950241886,-1070.82366199,0.00026983,2]
[391881869,1760950241895,-1500.0,0.00026983,2]
[391881870,1760950241904,-1500.0,0.00026983,2]
[391881871,1760950241913,-1500.0,0.00026983,2]
[391881872,1760950241923,-1015.02448864,0.00026983,2]
[391881873,1760950241933,-1500.0,0.00026983,2]
[391881874,1760950241946,-1500.0,0.00026983,2]
[391881875,1760950241955,-1500.0,0.00026983,2]
[391881876,1760950241965,-1500.0,0.00026983,2]
[391881877,1760950241975,-152.73868571,0.00026983,2]
[391881878,1760950241984,-500.0,0.00026984,5]
[391881879,1760950241993,-522.0,0.0002699,3]
[391881880,1760950242004,-35098.72689305,0.00027,3]
[391881881,1760950242015,-522.0,0.00027044,3]
[391881882,1760950242024,-3613.09471256,0.00027077,2]
[391881883,1760950242034,-529.75788133,0.00027099,3]
[391881884,1760950242043,-197.8,0.00027129,2]
[391881885,1760950242052,-261.871902,0.00027134,2]
[391881886,1760950242061,-217.975983,0.00027134,2]
[391881887,1760950242071,-151.0,0.000272,14]
[391881888,1760950242080,-500.0,0.00027258,5]
[391881889,1760950242090,-360.0,0.00027259,2]
[391881890,1760950242099,-1500.0,0.00027261,2]
[391881891,1760950242108,-500.0,0.00027281,2]
[391881892,1760950242117,-166.64301674,0.00027281,2]
[391881893,1760950242127,-168.05889343,0.00027281,2]
[391881894,1760950242136,-500.81976336,0.00027281,2]
[391881895,1760950242146,-500.0,0.00027281,2]
[391881896,1760950242156,-500.0,0.00027281,2]
[391881897,1760950242166,-433.48337635,0.00027281,2]
[391881898,1760950242175,-500.0,0.00027281,2]
[391881899,1760950242185,-311.1,0.00027397,2]
[391881900,1760950242194,-150.0,0.00027397,5]
[391881901,1760950242204,-3768.46,0.000274,2]
[391881902,1760950242214,-1655.4564016,0.00027458,2]
[391881903,1760950242224,-261.871902,0.00027468,2]
[391881904,1760950242234,-217.975983,0.00027468,2]
[391881905,1760950242243,-250.0,0.00027477,2]
[391881906,1760950242252,-533.88981491,0.00027477,2]
[391881907,1760950242262,-250.0,0.00027477,2]
[391881908,1760950242272,-194.72792766,0.00027477,2]
[391881909,1760950242281,-250.0,0.00027477,2]
[391881910,1760950242290,-250.0,0.00027477,2]
[391881911,1760950242299,-274.72161769,0.00027477,2]
[391881912,1760950242309,-250.0,0.00027477,2]
[391881913,1760950242318,-303.16621955,0.00027477,2]
[391881914,1760950242327,-250.0,0.00027477,2]
[391881915,1760950242336,-250.0,0.00027477,2]
[391881916,1760950242345,-250.0,0.00027477,2]
[391881917,1760950242355,-250.0,0.00027477,2]
[391881918,1760950242364,-250.0,0.00027477,2]
[391881919,1760950242374,-250.0,0.00027477,2]
[391881920,1760950242383,-250.0,0.00027477,2]
[391881921,1760950242392,-250.0,0.00027477,2]
[391881922,1760950242401,-250.0,0.00027477,2]
[391881923,1760950242411,-250.0,0.00027477,2]
[391881924,1760950242420,-250.0,0.00027477,2]
[391881925,1760950242429,-250.0,0.00027477,2]
[391881926,1760950242438,-262.5,0.000275,2]
[391881927,1760950242447,-2023.82627988,0.00027512,5]
[391881928,1760950242456,-3000.0,0.00027512,5]
[391881929,1760950242466,-250.0,0.00027521,5]
[391881930,1760950242475,-300.0,0.00027521,5]
[391881931,1760950242485,-2000.0,0.00027531,5]
[391881932,1760950242494,-1446.45912168,0.00027531,5]
[391881933,1760950242503,-1790.63311626,0.00027531,5]
[391881934,1760950242512,-2000.0,0.00027531,5]
[391881935,1760950242521,-1995.94699985,0.00027531,5]
[391881936,1760950242530,-2000.0,0.00027531,5]
[391881937,1760950242540,-2000.0,0.00027531,5]
[391881938,1760950242549,-2000.0,0.00027531,5]
[391881939,1760950242559,-543.5,0.00027532,15]
[391881940,1760950242568,-1000.0,0.000276,2]
[391881941,1760950242577,-1000.0,0.000276,2]
[391881942,1760950242586,-1000.0,0.000276,2]
[391881943,1760950242595,-1000.0,0.000276,2]
[391881944,1760950242603,-1000.0,0.000276,2]
[391881945,1760950242612,-1000.0,0.000276,2]
[391881946,1760950242621,-1000.0,0.000276,2]
[391881947,1760950242631,-4917.82335876,0.00027646,2]
[391881948,1760950242640,-261.871902,0.00027801,2]
[391881949,1760950242649,-217.975983,0.00027801,2]
[391881950,1760950242658,-460.0,0.00027807,2]
[391881951,1760950242668,-1577.82391347,0.00027809,5]
[391881952,1760950242677,-1000.0,0.00027829,5]
[391881953,1760950242687,-1000.0,0.00027829,4]
[391881954,1760950242696,-933.28505328,0.00027829,5]
[391881955,1760950242705,-1018.20040332,0.00027829,5]
[391881956,1760950242715,-429.60557121,0.00027895,2]
[391881957,1760950242723,-429.60557121,0.00027895,2]
[391881958,1760950242732,-429.60557121,0.00027895,2]
[391881959,1760950242741,-177.822,0.00027935,18]
[391881960,1760950242750,-250.0,0.00027945,5]
[391881961,1760950242759,-322.6107,0.00027945,2]
[391881962,1760950242768,-553.64373807,0.00028025,2]
[391881963,1760950242777,-201.93286099,0.00028025,2]
[391881964,1760950242787,-3397.68027159,0.0002806,5]
[391881965,1760950242796,-429.60557121,0.00028063,4]
[391881966,1760950242805,-429.60557121,0.00028063,4]
[391881967,1760950242815,-350.0,0.00028068,5]
[391881968,1760950242823,-450.0,0.00028068,5]
[391881969,1760950242833,-2500.0,0.00028079,5]
[391881970,1760950242842,-2500.0,0.00028079,5]
[391881971,1760950242851,-1515.50384054,0.00028079,5]
[391881972,1760950242861,-2500.0,0.00028079,5]
[391881974,1760950242870,-2500.0,0.00028079,5]
[391881975,1760950242879,-222.52,0.00028098,2]
[391881977,1760950242888,-285.0,0.000281,2]
[391881979,1760950242897,-261.871902,0.00028135,2]
[391881980,1760950242906,-217.975983,0.00028135,2]
[391881981,1760950242915,-6423.27948899,0.00028214,2]
[391881983,1760950242924,-429.60557121,0.00028231,6]
[391881984,1760950242935,-429.60557121,0.00028231,6]
[391881985,1760950242946,-2586.6506275,0.00028282,2]
[391881986,1760950242955,-560.0,0.00028355,2]
[391881987,1760950242964,-1500.0,0.00028377,5]
[391881988,1760950242974,-1607.5256638,0.00028377,4]
[391881989,1760950242983,-429.60557121,0.00028399,8]
[391881990,1760950242992,-429.60557121,0.00028399,8]
[391881991,1760950243001,-429.60557121,0.00028399,8]
[391881992,1760950243010,-429.60557121,0.00028399,8]
[391881993,1760950243019,-23592.77,0.000284,7]
[391881994,1760950243029,-350.0,0.00028493,5]
[391881995,1760950243038,-216.05089707,0.00028493,2]
[391881996,1760950243047,-429.60557121,0.00028566,10]
[391881997,1760950243056,-429.60557121,0.00028566,10]
[391881998,1760950243065,-429.60557121,0.00028566,10]
[391881999,1760950243074,-429.60557121,0.00028566,10]
[391882000,1760950243083,-574.12855637,0.00028573,2]
[391882001,1760950243093,-209.40437684,0.00028573,2]
[391882002,1760950243103,-258.0,0.00028603,30]
[391882003,1760950243112,-189.82742202,0.00028616,5]
[391882004,1760950243121,-600.0,0.00028616,5]
[391882005,1760950243131,-3000.0,0.00028627,5]
[391882006,1760950243141,-3000.0,0.00028627,5]
[391882007,1760950243150,-3000.0,0.00028627,5]
[391882008,1760950243160,-1291.85459446,0.00028627,5]
[391882009,1760950243292,-307.5,0.000287,2]
[391882010,1760950243302,-660.0,0.00028903,2]
[391882011,1760950243316,-2000.0,0.00028925,5]
[391882012,1760950243325,-402.9601108,0.00028992,2]
[391882013,1760950243335,-160.0,0.00028992,2]
[391882014,1760950243344,-1001.92,0.00029,2]
[391882015,1760950243354,-526.88473247,0.00029036,2]
[391882016,1760950243364,-402.45806803,0.00029041,5]
[391882017,1760950243373,-247.25,0.00029066,2]
[391882018,1760950243383,-2351.0,0.00029084,2]
[391882019,1760950243392,-587.0,0.00029084,2]
[391882020,1760950243401,-282.0,0.00029084,2]
[391882021,1760950243410,-3724.7769036,0.00029106,2]
[391882022,1760950243419,-595.37131296,0.00029121,2]
[391882023,1760950243429,-217.15233878,0.00029121,2]
[391882024,1760950243438,-383.61310881,0.00029164,5]
[391882025,1760950243450,-1001.92,0.00029174,2]
[391882026,1760950243459,-3500.0,0.00029175,5]
[391882027,1760950243468,-3500.0,0.00029175,5]
[391882028,1760950243478,-231.9916636,0.00029175,5]
[391882029,1760950243487,-160.0,0.00029186,2]
[391882030,1760950243496,-330.0,0.000293,2]
[391882031,1760950243506,-2351.0,0.00029349,2]
[391882032,1760950243515,-5000.0,0.00029353,2]
[391882033,1760950243524,-157.67836206,0.00029451,2]
[391882034,1760950243533,-760.0,0.00029451,2]
[391882035,1760950243542,-396.0,0.00029453,2]
[391882036,1760950243552,-396.0,0.00029466,7]
[391882037,1760950243562,-1850.35554763,0.00029473,5]
[391882038,1760950243571,-396.0,0.00029571,2]
[391882039,1760950243581,-396.0,0.00029654,2]
[391882040,1760950243591,-617.40005154,0.00029669,2]
[391882041,1760950243600,-225.18697532,0.00029669,2]
[391882042,1760950243610,-921.0,0.00029717,7]
[391882043,1760950243620,-4011.25074962,0.00029723,5]
[391882044,1760950243629,-4000.0,0.00029723,5]
[391882045,1760950243638,-151.0,0.000299,20]
[391882046,1760950243647,-352.5,0.000299,2]
[391882047,1760950243657,-860.0,0.00029999,2]
[391882048,1760950243666,-921.0,0.0003,2]
[391882049,1760950243675,-396.0,0.00030108,2]
[391882050,1760950243684,-3768.46,0.000302,2]
[391882051,1760950243694,-640.24385345,0.00030217,2]
[391882052,1760950243704,-233.51889341,0.00030217,2]
[391882053,1760950243714,-921.0,0.00030253,2]
[391882054,1760950243723,-4500.0,0.00030271,5]
[391882055,1760950243732,-396.0,0.00030322,2]
[391882056,1760950243742,-396.0,0.00030359,2]
[391882057,1760950243751,-396.0,0.00030473,2]
[391882058,1760950243760,-375.0,0.000305,2]
[391882059,1760950243769,-396.0,0.00030516,2]
[391882060,1760950243778,-921.0,0.00030519,2]
[391882061,1760950243788,-396.0,0.00030541,2]
[391882062,1760950243797,-822.63163458,0.00030547,2]
[391882063,1760950243806,-151.0,0.000306,11]
[391882064,1760950243816,-663.93287602,0.00030765,2]
[391882065,1760950243826,-242.15909246,0.00030765,2]
[391882066,1760950243835,-396.0,0.00030777,2]
[391882067,1760950243844,-5000.0,0.00030819,5]
[391882068,1760950243854,-386.0595245,0.00030962,5]
[391882069,1760950243863,-921.0,0.00030963,2]
[391882070,1760950243872,-150.0,0.00030972,7]
[391882071,1760950243881,-183.30272066,0.00031,120]
[391882072,1760950243890,-204.00726077,0.00031,120]
[391882073,1760950243900,-366.30484536,0.00031,120]
[391882074,1760950243909,-627.30921148,0.00031,120]
[391882075,1760950243918,-336.53503533,0.00031,120]
[391882076,1760950243927,-194.23567488,0.00031099,15]
[391882077,1760950243940,-397.5,0.000311,2]
[391882078,1760950243950,-151.25,0.00031113,15]
[391882079,1760950243959,-396.0,0.00031161,2]
[391882080,1760950243968,-166.0,0.0003118,7]
[391882081,1760950243979,-526.88473247,0.00031209,2]
[391882082,1760950243988,-151.25,0.00031213,15]
[391882083,1760950243998,-688.49839244,0.00031313,2]
[391882084,1760950244009,-251.11897888,0.00031313,2]
[391882085,1760950244018,-151.25,0.00031313,15]
[391882086,1760950244027,-5500.0,0.00031367,5]
[391882087,1760950244037,-159.97751647,0.00031371,7]
[391882088,1760950244047,-396.0,0.00031388,2]
[391882089,1760950244056,-151.0,0.000314,19]
[391882090,1760950244065,-151.25,0.00031413,15]
[391882091,1760950244075,-151.25,0.00031513,15]
[391882092,1760950244085,-1563.0,0.00031515,3]
[391882093,1760950244094,-823.0,0.00031515,2]
[391882094,1760950244104,-922.0,0.00031579,2]
[391882095,1760950244114,-151.25,0.00031613,15]
[391882096,1760950244124,-420.0,0.000317,2]
[391882097,1760950244134,-396.0,0.00031703,7]
[391882098,1760950244143,-151.25,0.00031713,15]
[391882099,1760950244152,-922.0,0.00031764,7]
[391882100,1760950244162,-396.0,0.00031792,2]
[391882101,1760950244172,-396.0,0.00031808,7]
[391882102,1760950244181,-151.25,0.00031813,15]
[391882103,1760950244191,-713.97283296,0.00031861,2]
[391882104,1760950244201,-260.4103811,0.00031861,2]
[391882105,1760950244211,-627.30921148,0.000319,120]
[391882106,1760950244220,-366.30484536,0.000319,120]
[391882107,1760950244230,-336.53503533,0.000319,120]
[391882108,1760950244240,-400.0,0.000319,2]
[391882109,1760950244251,-283.7,0.000319,2]
[391882110,1760950244261,-151.25,0.00031913,15]
[391882111,1760950244270,-6000.0,0.00031915,5]
[391882112,1760950244280,-1000.0,0.00031923,4]
[391882113,1760950244293,-3292.0,0.00031946,3]
[391882114,1760950244302,-151.25,0.00032013,15]
[391882115,1760950244312,-396.0,0.00032099,2]
[391882116,1760950244322,-3768.46,0.000321,2]
[391882117,1760950244332,-396.0,0.00032102,2]
[391882118,1760950244341,-151.25,0.00032113,15]
[391882119,1760950244351,-151.0,0.000322,11]
[391882120,1760950244360,-151.0,0.000322,12]
[391882121,1760950244370,-151.25,0.00032213,15]
[391882122,1760950244379,-442.5,0.000323,2]
[391882123,1760950244389,-151.25,0.00032313,15]
[391882124,1760950244399,-250.0,0.00032373,2]
[391882125,1760950244409,-467.23374725,0.00032389,5]
[391882126,1760950244418,-740.38982778,0.00032409,2]
[391882127,1760950244428,-270.0455652,0.00032409,2]
[391882128,1760950244438,-151.25,0.00032413,15]
[391882130,1760950244447,-4114.33579214,0.00032463,5]
[391882132,1760950244456,-151.25,0.00032513,15]
[391882134,1760950244466,-11285.53925512,0.00032598,3]